{"text_format":"1","workbook":"xlsx","n_sheets":3,"sheets":["Бланк Методички","Обработка результатов","Печать"],"not_rendered":{"charts":0,"images":1,"macros":1,"external_links":0,"defined_names":0,"comments":0,"pivot_tables":0},"unopened":[],"bounds":{"document_bytes":16777216,"sheet_cells":100000,"rows_first":2000,"rows_last":500,"rows_between":2000,"halvings":0,"cell_chars":16384,"cell_head_chars":4096},"cells_cut":0,"cells_raw":0,"read":"whole","date_system":"1900"}

{"sheet":"Бланк Методички","index":0,"n_rows":67,"n_cols":34,"rows_kept":67,"cut":false,"hidden":false,"merged":[[16,1,16,13],[17,1,17,13],[18,1,18,13],[19,1,19,13],[20,1,20,13],[45,1,45,13],[31,1,31,13],[32,1,32,13],[33,1,33,13],[34,1,34,13],[35,1,35,13],[36,1,36,13],[37,1,37,13],[38,1,38,13],[39,1,39,13],[40,1,40,13],[41,1,41,13],[42,1,42,13],[43,1,43,13],[44,1,44,13],[1,10,1,11],[1,12,1,14],[1,0,1,2],[1,3,1,8],[2,0,2,2],[2,3,2,8],[12,1,12,13],[13,1,13,13],[14,1,14,13],[15,1,15,13],[2,15,2,18],[4,0,7,14],[9,1,9,13],[10,1,10,13],[11,1,11,13],[21,1,21,13],[22,1,22,13],[23,1,23,13],[24,1,24,13],[25,1,25,13],[26,1,26,13],[27,1,27,13],[28,1,28,13],[29,1,29,13],[30,1,30,13],[46,1,46,13],[47,1,47,13],[48,1,48,13],[49,1,49,13],[50,1,50,13],[51,1,51,13],[52,1,52,13],[53,1,53,13],[54,1,54,13],[55,1,55,13],[56,1,56,13],[57,1,57,13],[58,1,58,13],[59,1,59,13],[60,1,60,13],[66,1,66,13],[61,1,61,13],[62,1,62,13],[63,1,63,13],[64,1,64,13],[65,1,65,13]]}
[null,null,null,null,null,null,null,null,null,null,null,null,null,null,null,null,null,null,null,null,null,null,null,null,null,null,null,null,null,null,null,null,10,"5 А"]
["Фамилия, имя",null,null,null,null,null,null,null,null,null,"Класс",null,null,null,null,null,null,null,null,null,null,null,null,null,null,null,null,null,null,null,null,null,11,"5 Б"]
["Возраст",null,null,null,null,null,null,null,null,null,null,null,null,null,null,null,null,null,null,null,null,null,null,null,null,null,null,null,null,null,null,null,12,"5 В"]
[null,null,null,null,null,null,null,null,null,null,null,null,null,null,null,null,null,null,null,null,null,null,null,null,null,null,null,null,null,null,null,null,13]
["Вам будет предложен опросник, который состоит из вопросов о том, как Вы себя чувствуете в школе. Старайтесь отвечать искренне и правдиво, здесь нет верных или неверных, хороших или плохих ответов. Над вопросами долго не задумывайтесь.\n\nЕсли согласны с высказыванием, в бланке поставьте «+», если нет «–». ",null,null,null,null,null,null,null,null,null,null,null,null,null,null,null,null,null,null,null,null,null,null,null,null,null,null,null,null,null,null,"Мальчик",14]
[null,null,null,null,null,null,null,null,null,null,null,null,null,null,null,null,null,null,null,null,null,null,null,null,null,null,null,null,null,null,null,"Девочка",15]
[null,null,null,null,null,null,null,null,null,null,null,null,null,null,null,null,null,null,null,null,null,null,null,null,null,null,null,null,null,null,null,null,16]
[]
[]
[1,"Трудно ли тебе держаться на одном уровне со всем классом?",null,null,null,null,null,null,null,null,null,null,null,null,null,null,null,null,null,null,null,null,null,null,null,"+"]
[2,"Волнуешься ли ты, когда учитель говорит, что собирается проверить, насколько ты знаешь материал?",null,null,null,null,null,null,null,null,null,null,null,null,null,null,null,null,null,null,null,null,null,null,null,"-"]
[3,"Трудно ли тебе работать в классе так, как этого хочет учитель?"]
[4,"Снится ли тебе временами, что учитель в ярости от того, что ты не знаешь урок?"]
[5,"Случалось ли, что кто-нибудь из твоего класса бил или ударял тебя?"]
[6,"Часто ли тебе хочется, чтобы учитель не торопился при объяснении нового материала, пока ты не поймешь, что он говорит?"]
[7,"Сильно ли ты волнуешься при ответе или выполнении задания?"]
[8,"Случается ли с тобой, что ты боишься высказываться на уроке, потому что боишься сделать глупую ошибку?"]
[9,"Дрожат ли у тебя колени, когда тебя вызывают отвечать?"]
[10,"Часто ли твои одноклассники смеются над тобой, когда вы играете в разные игры?"]
[11,"Случается ли, что тебе ставят более низкую оценку, чем ты ожидал?"]
[12,"Волнует ли тебя вопрос о том, не оставят ли тебя на второй год?"]
[13,"Стараешься ли ты избегать игр, в которых делается выбор, потому что тебя, как правило, не выбирают?"]
[14,"Бывает ли временами, что ты весь дрожишь, когда тебя вызывают отвечать?"]
[15,"Часто ли у тебя возникает ощущение, что никто из этих одноклассников не хочет делать то, что хочешь ты?"]
[16,"Сильно ли ты волнуешься перед тем, как начать выполнять задание?"]
[17,"Трудно ли тебе получать такие отметки, каких ждут от тебя родители?"]
[18,"Боишься ли ты временами, что тебе станет дурно в классе?"]
[19,"Будут ли твои одноклассники смеяться над тобой, ты сделаешь ошибку при ответе?"]
[20,"Похож ли ты на своих одноклассников?"]
[21,"Выполнив задание, беспокоишься ли ты о том, хорошо ли с ним справился?"]
[22,"Когда ты работаешь в классе, уверен ли ты в том, что все хорошо запомнишь?"]
[23,"Снится ли тебе иногда, что ты в школе и не можешь ответить на вопрос учителя?"]
[24,"Верно ли, что большинство ребят относится к тебе дружески?"]
[25,"Работаешь ли ты более усердно, если знаешь, что результаты твоей работы будут сравниваться в классе результатами твоих одноклассников?"]
[26,"Часто ли ты мечтаешь о том, чтобы поменьше волноваться, когда тебя спрашивают?"]
[27,"Боишься ли ты временами вступать в спор?"]
[28,"Чувствуешь ли ты, что твое сердце начинает сильно биться, когда учитель говорит, что собирается проверить твою готовность к уроку?"]
[29,"Когда ты получаешь хорошие отметки, думает ли кто-нибудь из твоих друзей, что ты хочешь выслужиться?"]
[30,"Хорошо ли ты себя чувствуешь с теми из твоих одноклассников, к которым ребята относятся с особым вниманием?"]
[31,"Бывает ли, что некоторые ребята в классе говорят что-то, что тебя задевает?"]
[32,"Как ты думаешь, теряют ли расположение те из учеников, которые не справляются с учебой?"]
[33,"Похоже ли на то, что большинство твоих одноклассников не обращают на тебя внимание?"]
[34,"Часто ли ты боишься выглядеть нелепо?"]
[35,"Доволен ли ты тем, как к тебе относятся учителя?"]
[36,"Помогает ли твоя мама в организации вечеров, как другие мамы твоих одноклассников?"]
[37,"Волновало ли тебя когда-нибудь, что думают о тебе окружающие?"]
[38,"Надеешься ли ты в будущем учиться лучше, чем раньше?"]
[39,"Считаешь ли ты, что одеваешься в школу также хорошо, как и твои одноклассники?"]
[40,"Часто ли ты задумываешься, отвечая на уроке, что думают о тебе в это время другие?"]
[41,"Обладают ли способные ученики какими-то особыми правами, которых нет у других ребят в классе?"]
[42,"Злятся ли некоторые из твоих одноклассников, когда тебе удается быть лучше их?"]
[43,"Доволен ли ты тем, как к тебе относятся одноклассники?"]
[44,"Хорошо ли ты себя чувствуешь, когда остаешься один на один с учителем?"]
[45,"Высмеивают ли временами твои одноклассники твою внешность и поведение?"]
[46,"Думаешь ли ты, что беспокоишься о своих дошкольных делах больше, чем другие ребята?"]
[47,"Если ты не можешь ответить, когда тебя спрашивают, чувствуешь ли ты, что вот-вот расплачешься?"]
[48,"Когда вечером ты лежишь в постели, думаешь ли ты временами с беспокойством о том, что будет завтра в школе?"]
[49,"Работая над трудным заданием, чувствуешь ли ты порой, что совершенно забыл вещи, которые хорошо знал раньше?"]
[50,"Дрожит ли слегка твоя рука, когда ты работаешь над заданием?"]
[51,"Чувствуешь ли ты, что начинаешь нервничать, когда учитель говорит, что собирается дать классу задание?"]
[52,"Пугает ли тебя проверка твоих знаний в школе?"]
[53,"Когда учитель говорит, что собирается дать классу задание, чувствуешь ли ты страх, что не справишься ним?"]
[54,"Снилось ли тебе временами, что твои одноклассники могут сделать то, что не можешь ты?"]
[55,"Когда учитель объясняет материал, кажется ли тебе, твои одноклассники понимают его лучше, чем ты?"]
[56,"Беспокоишься ли ты по дороге в школу, что учитель может дать классу проверочную работу?"]
[57,"Когда ты выполняешь задание, чувствуешь ли ты зычно, что делаешь это плохо?"]
[58,"Дрожит ли слегка твоя рука, когда учитель просит сделать задание на доске перед всем классом?"]

{"sheet":"Обработка результатов","index":1,"n_rows":42,"n_cols":50,"rows_kept":42,"cut":false,"hidden":true,"merged":[[1,1,1,22],[12,1,12,22],[11,0,11,28],[18,25,18,28],[19,25,19,28],[20,25,20,28],[17,25,17,28],[2,25,2,26],[2,27,2,32],[12,25,12,28],[3,25,3,26],[3,27,3,32],[13,25,13,28],[14,25,14,28],[15,25,15,28],[16,25,16,28]]}
[]
["Шкала","Пункты, номер"]
["Общая тревожность в школе",2,3,7,12,16,21,23,26,28,46,47,48,49,50,51,52,53,54,55,56,57,58,null,null,"Ф.И.О.",null,{"$f":"PROPER('Бланк Методички'!D2)","v":""}]
["Переживание социального стресса",5,10,15,20,24,30,33,36,39,42,44,null,null,null,null,null,null,null,null,null,null,null,null,null,"Класс",null,{"$f":"'Бланк Методички'!M2","v":0}]
["Фрустрация потребности в достижении успеха",1,3,6,11,17,19,25,29,32,35,38,41,43]
["Страх самовыживания",27,31,34,37,40,45]
["Страх ситуации проверки знаний",2,7,12,16,21,26]
["Страх не соответствовать ожиданиям окружающих",3,8,13,17,22]
["Низкая физиологическая сопротивляемость стрессу",9,14,18,23,28]
["Проблемы и страхи в отношениях с учителями",2,6,11,32,35,41,44,47,null,null,null,null,null,null,null,null,null,null,null,null,null,null,null,null,null,null,null,null,null,null,null,null,null,null,null,null,null,null,null,null,null,null,null,null,null,{"$f":"'Бланк Методички'!O23","v":0},{"$f":"'Бланк Методички'!O39","v":0},{"$f":"'Бланк Методички'!O47","v":0}]
[null,null,null,null,null,null,null,null,null,null,null,null,null,null,null,null,null,null,null,null,null,null,null,null,null,null,null,null,null,null,null,null,null,null,null,null,null,null,null,null,null,null,null,null,null,null,{"$f":"'Бланк Методички'!O13","v":0},{"$f":"'Бланк Методички'!O29","v":0},{"$f":"'Бланк Методички'!O41","v":0}]
["Результаты",null,null,null,null,null,null,null,null,null,null,null,null,null,null,null,null,null,null,null,null,null,null,null,null,null,null,null,null,null,null,null,null,null,null,null,null,null,null,null,null,null,null,null,null,null,{"$f":"'Бланк Методички'!O10","v":0},{"$f":"'Бланк Методички'!O18","v":0},{"$f":"'Бланк Методички'!O34","v":0},{"$f":"'Бланк Методички'!O42","v":0}]
["Шкала","Ответы",null,null,null,null,null,null,null,null,null,null,null,null,null,null,null,null,null,null,null,null,null,"Итого","%","Уровень"]
["Общая тревожность в школе",{"$f":"D34","v":0},{"$f":"D35","v":0},{"$f":"D39","v":0},{"$f":"F34","v":0},{"$f":"F38","v":0},{"$f":"H33","v":0},{"$f":"H35","v":0},{"$f":"H38","v":0},{"$f":"H40","v":0},{"$f":"L38","v":0},{"$f":"L39","v":0},{"$f":"L40","v":0},{"$f":"L41","v":0},{"$f":"L42","v":0},{"$f":"N33","v":0},{"$f":"N34","v":0},{"$f":"N35","v":0},{"$f":"N36","v":0},{"$f":"N37","v":0},{"$f":"N38","v":0},{"$f":"N39","v":0},{"$f":"N40","v":0},{"$f":"COUNTIF(B14:W14,\"0\")","v":22},{"$f":"(X14*100)/22","v":100},{"$f":"IF(AND(Y14>=50,Y14<75),\"Повышенная тревожность\",IF(Y14>=75,\"Высокая тревожность\",IF(Y14<50,\"Низкая тревожность\",)))","v":"Высокая тревожность"}]
["Переживание социального стресса",{"$f":"D37","v":0},{"$f":"D42","v":0},{"$f":"F37","v":0},{"$f":"F42","v":0},{"$f":"H36","v":0},{"$f":"H42","v":0},{"$f":"J35","v":0},{"$f":"J38","v":0},{"$f":"J41","v":0},{"$f":"L34","v":0},{"$f":"L36","v":0},null,null,null,null,null,null,null,null,null,null,null,{"$f":"COUNTIF(B15:L15,\"0\")","v":11},{"$f":"(X15*100)/11","v":100},{"$f":"IF(AND(Y15>=50,Y15<75),\"Повышенная тревожность\",IF(Y15>=75,\"Высокая тревожность\",IF(Y15<50,\"Низкая тревожность\",)))","v":"Высокая тревожность"}]
["Фрустрация потребности в достижении успеха",{"$f":"D33","v":0},{"$f":"D35","v":0},{"$f":"D38","v":0},{"$f":"F33","v":0},{"$f":"F39","v":0},{"$f":"F41","v":0},{"$f":"H37","v":0},{"$f":"H41","v":0},{"$f":"J34","v":0},{"$f":"J37","v":0},{"$f":"J40","v":0},{"$f":"L33","v":0},{"$f":"L35","v":0},null,null,null,null,null,null,null,null,null,{"$f":"COUNTIF(B16:N16,\"0\")","v":13},{"$f":"(X16*100)/13","v":100},"Высокая тревожность"]
["Страх самовыживания",{"$f":"H39","v":0},{"$f":"J33","v":0},{"$f":"J36","v":0},{"$f":"J39","v":0},{"$f":"J42","v":0},{"$f":"L37","v":0},null,null,null,null,null,null,null,null,null,null,null,null,null,null,null,null,{"$f":"COUNTIF(B17:G17,\"0\")","v":6},{"$f":"(X17*100)/6","v":100},"Высокая тревожность"]
["Страх ситуации проверки знаний",{"$f":"D34","v":0},{"$f":"D39","v":0},{"$f":"F34","v":0},{"$f":"F38","v":0},{"$f":"H33","v":0},{"$f":"H38","v":0},null,null,null,null,null,null,null,null,null,null,null,null,null,null,null,null,{"$f":"COUNTIF(B18:G18,\"0\")","v":6},{"$f":"(X18*100)/6","v":100},"Высокая тревожность"]
["Страх не соответствовать ожиданиям окружающих",{"$f":"D35","v":0},{"$f":"D40","v":0},{"$f":"F35","v":0},{"$f":"F39","v":0},{"$f":"H34","v":0},null,null,null,null,null,null,null,null,null,null,null,null,null,null,null,null,null,{"$f":"COUNTIF(B19:F19,\"0\")","v":5},{"$f":"(X19*100)/5","v":100},"Высокая тревожность"]
["Низкая физиологическая сопротивляемость стрессу",{"$f":"D41","v":0},{"$f":"F36","v":0},{"$f":"F40","v":0},{"$f":"H35","v":0},{"$f":"H40","v":0},null,null,null,null,null,null,null,null,null,null,null,null,null,null,null,null,null,{"$f":"COUNTIF(B20:F20,\"0\")","v":5},{"$f":"(X20*100)/5","v":100},"Высокая тревожность"]
["Проблемы и страхи в отношениях с учителями",{"$f":"D34","v":0},{"$f":"D38","v":0},{"$f":"F33","v":0},{"$f":"J34","v":0},{"$f":"J37","v":0},{"$f":"L33","v":0},{"$f":"L36","v":0},{"$f":"L39","v":0},null,null,null,null,null,null,null,null,null,null,null,null,null,null,{"$f":"COUNTIF(B21:I21,\"0\")","v":8},{"$f":"(X21*100)/8","v":100},"Высокая тревожность"]
[null,null,1,"─",11,"+",21,"─",31,"─",41,"+",51,"─"]
[null,null,2,"─",12,"─",22,"+",32,"─",42,"─",52,"─"]
[null,null,3,"─",13,"─",23,"─",33,"─",43,"+",53,"─"]
[null,null,4,"─",14,"─",24,"+",34,"─",44,"+",54,"─"]
[null,null,5,"─",15,"─",25,"+",35,"+",45,"─",55,"─"]
[null,null,6,"─",16,"─",26,"─",36,"+",46,"─",56,"─"]
[null,null,7,"─",17,"─",27,"─",37,"─",47,"─",57,"─"]
[null,null,8,"─",18,"─",28,"─",38,"+",48,"─",58,"─"]
[null,null,9,"─",19,"─",29,"─",39,"+",49,"─"]
[null,null,10,"─",20,"+",30,"+",40,"─",50,"─"]
[]
[null,null,1,{"$f":"IF('Бланк Методички'!O10='Бланк Методички'!$Z$11,1,0)","v":0},11,{"$f":"IF('Бланк Методички'!O20='Бланк Методички'!Z10,1,0)","v":0},21,{"$f":"IF('Бланк Методички'!O30='Бланк Методички'!Z11,1,0)","v":0},31,{"$f":"IF('Бланк Методички'!O40='Бланк Методички'!$Z$11,1,0)","v":0},41,{"$f":"IF('Бланк Методички'!O50='Бланк Методички'!Z10,1,0)","v":0},51,{"$f":"IF('Бланк Методички'!O60='Бланк Методички'!$Z$11,1,0)","v":0}]
[null,null,2,{"$f":"IF('Бланк Методички'!O11='Бланк Методички'!$Z$11,1,0)","v":0},12,{"$f":"IF('Бланк Методички'!O21='Бланк Методички'!$Z$11,1,0)","v":0},22,{"$f":"IF('Бланк Методички'!O31='Бланк Методички'!Z10,1,0)","v":0},32,{"$f":"IF('Бланк Методички'!O41='Бланк Методички'!$Z$11,1,0)","v":0},42,{"$f":"IF('Бланк Методички'!O51='Бланк Методички'!Z11,1,0)","v":0},52,{"$f":"IF('Бланк Методички'!O61='Бланк Методички'!$Z$11,1,0)","v":0}]
[null,null,3,{"$f":"IF('Бланк Методички'!O12='Бланк Методички'!$Z$11,1,0)","v":0},13,{"$f":"IF('Бланк Методички'!O22='Бланк Методички'!$Z$11,1,0)","v":0},23,{"$f":"IF('Бланк Методички'!O32='Бланк Методички'!Z11,1,0)","v":0},33,{"$f":"IF('Бланк Методички'!O42='Бланк Методички'!$Z$11,1,0)","v":0},43,{"$f":"IF('Бланк Методички'!O52='Бланк Методички'!$Z$10,1,0)","v":0},53,{"$f":"IF('Бланк Методички'!O62='Бланк Методички'!$Z$11,1,0)","v":0}]
[null,null,4,{"$f":"IF('Бланк Методички'!O13='Бланк Методички'!$Z$11,1,0)","v":0},14,{"$f":"IF('Бланк Методички'!O23='Бланк Методички'!$Z$11,1,0)","v":0},24,{"$f":"IF('Бланк Методички'!O33='Бланк Методички'!Z10,1,0)","v":0},34,{"$f":"IF('Бланк Методички'!O43='Бланк Методички'!$Z$11,1,0)","v":0},44,{"$f":"IF('Бланк Методички'!O53='Бланк Методички'!$Z$10,1,0)","v":0},54,{"$f":"IF('Бланк Методички'!O63='Бланк Методички'!$Z$11,1,0)","v":0}]
[null,null,5,{"$f":"IF('Бланк Методички'!O14='Бланк Методички'!$Z$11,1,0)","v":0},15,{"$f":"IF('Бланк Методички'!O24='Бланк Методички'!$Z$11,1,0)","v":0},25,{"$f":"IF('Бланк Методички'!O34='Бланк Методички'!Z10,1,0)","v":0},35,{"$f":"IF('Бланк Методички'!O44='Бланк Методички'!$Z$10,1,0)","v":0},45,{"$f":"IF('Бланк Методички'!O54='Бланк Методички'!$Z$11,1,0)","v":0},55,{"$f":"IF('Бланк Методички'!O64='Бланк Методички'!$Z$11,1,0)","v":0}]
[null,null,6,{"$f":"IF('Бланк Методички'!O15='Бланк Методички'!$Z$11,1,0)","v":0},16,{"$f":"IF('Бланк Методички'!O25='Бланк Методички'!$Z$11,1,0)","v":0},26,{"$f":"IF('Бланк Методички'!O35='Бланк Методички'!$Z$11,1,0)","v":0},36,{"$f":"IF('Бланк Методички'!O45='Бланк Методички'!$Z$10,1,0)","v":0},46,{"$f":"IF('Бланк Методички'!O55='Бланк Методички'!$Z$11,1,0)","v":0},56,{"$f":"IF('Бланк Методички'!O65='Бланк Методички'!$Z$11,1,0)","v":0}]
[null,null,7,{"$f":"IF('Бланк Методички'!O16='Бланк Методички'!$Z$11,1,0)","v":0},17,{"$f":"IF('Бланк Методички'!O26='Бланк Методички'!$Z$11,1,0)","v":0},27,{"$f":"IF('Бланк Методички'!O36='Бланк Методички'!$Z$11,1,0)","v":0},37,{"$f":"IF('Бланк Методички'!O46='Бланк Методички'!$Z$11,1,0)","v":0},47,{"$f":"IF('Бланк Методички'!O56='Бланк Методички'!$Z$11,1,0)","v":0},57,{"$f":"IF('Бланк Методички'!O66='Бланк Методички'!$Z$11,1,0)","v":0}]
[null,null,8,{"$f":"IF('Бланк Методички'!O17='Бланк Методички'!$Z$11,1,0)","v":0},18,{"$f":"IF('Бланк Методички'!O27='Бланк Методички'!$Z$11,1,0)","v":0},28,{"$f":"IF('Бланк Методички'!O37='Бланк Методички'!$Z$11,1,0)","v":0},38,{"$f":"IF('Бланк Методички'!O47='Бланк Методички'!$Z$10,1,0)","v":0},48,{"$f":"IF('Бланк Методички'!O57='Бланк Методички'!$Z$11,1,0)","v":0},58,{"$f":"IF('Бланк Методички'!O67='Бланк Методички'!$Z$11,1,0)","v":0}]
[null,null,9,{"$f":"IF('Бланк Методички'!O18='Бланк Методички'!$Z$11,1,0)","v":0},19,{"$f":"IF('Бланк Методички'!O28='Бланк Методички'!$Z$11,1,0)","v":0},29,{"$f":"IF('Бланк Методички'!O38='Бланк Методички'!$Z$11,1,0)","v":0},39,{"$f":"IF('Бланк Методички'!O48='Бланк Методички'!$Z$10,1,0)","v":0},49,{"$f":"IF('Бланк Методички'!O58='Бланк Методички'!$Z$11,1,0)","v":0}]
[null,null,10,{"$f":"IF('Бланк Методички'!O19='Бланк Методички'!$Z$11,1,0)","v":0},20,{"$f":"IF('Бланк Методички'!O29='Бланк Методички'!Z10,1,0)","v":0},30,{"$f":"IF('Бланк Методички'!O39='Бланк Методички'!Z10,1,0)","v":0},40,{"$f":"IF('Бланк Методички'!O49='Бланк Методички'!$Z$11,1,0)","v":0},50,{"$f":"IF('Бланк Методички'!O59='Бланк Методички'!$Z$11,1,0)","v":0}]

{"sheet":"Печать","index":2,"n_rows":42,"n_cols":8,"rows_kept":42,"cut":false,"hidden":false,"merged":[[0,0,0,8],[2,7,2,8],[3,7,3,8],[2,1,2,5],[3,1,3,5],[32,0,32,8],[33,0,33,8],[34,0,34,8],[6,6,6,8],[7,6,7,8],[8,6,8,8],[9,6,9,8],[7,0,7,4],[8,0,8,4],[9,0,9,4],[13,0,13,4],[11,6,11,8],[12,6,12,8],[13,6,13,8],[37,0,37,8],[38,0,38,8],[39,0,39,8],[40,0,40,8],[36,0,36,8],[27,0,27,8],[28,0,28,8],[29,0,29,8],[5,0,5,4],[6,0,6,4],[10,0,10,4],[10,6,10,8],[11,0,11,4],[5,6,5,8],[30,0,30,8],[31,0,31,8],[41,0,41,8],[35,0,35,8],[12,0,12,4],[16,0,16,8],[17,0,17,8],[18,0,18,8],[19,0,19,8],[20,0,20,8],[21,0,21,8],[22,0,22,8],[23,0,23,8],[24,0,24,8],[25,0,25,8],[26,0,26,8]]}
["Опросник школьной тревожности Филипса"]
[]
["ФИО",{"$f":"PROPER('Бланк Методички'!D2)","v":""},null,null,null,null,"Класс",{"$f":"'Бланк Методички'!M2","v":0}]
["Возраст",{"$f":"CONCATENATE('Бланк Методички'!D3, \" лет\")","v":" лет"},null,null,null,null,"Дата",{"$f":"TODAY()","v":"2018-03-05"}]
[]
["Шкала",null,null,null,null,"%","Уровень"]
[{"$f":"'Обработка результатов'!A3","v":"Общая тревожность в школе"},null,null,null,null,{"$f":"'Обработка результатов'!Y14","v":100},{"$f":"'Обработка результатов'!Z14","v":"Высокая тревожность"}]
[{"$f":"'Обработка результатов'!A4","v":"Переживание социального стресса"},null,null,null,null,{"$f":"'Обработка результатов'!Y15","v":100},{"$f":"'Обработка результатов'!Z15","v":"Высокая тревожность"}]
[{"$f":"'Обработка результатов'!A5","v":"Фрустрация потребности в достижении успеха"},null,null,null,null,{"$f":"'Обработка результатов'!Y16","v":100},{"$f":"'Обработка результатов'!Z16","v":"Высокая тревожность"}]
[{"$f":"'Обработка результатов'!A6","v":"Страх самовыживания"},null,null,null,null,{"$f":"'Обработка результатов'!Y17","v":100},{"$f":"'Обработка результатов'!Z17","v":"Высокая тревожность"}]
[{"$f":"'Обработка результатов'!A7","v":"Страх ситуации проверки знаний"},null,null,null,null,{"$f":"'Обработка результатов'!Y18","v":100},{"$f":"'Обработка результатов'!Z18","v":"Высокая тревожность"}]
[{"$f":"'Обработка результатов'!A8","v":"Страх не соответствовать ожиданиям окружающих"},null,null,null,null,{"$f":"'Обработка результатов'!Y19","v":100},{"$f":"'Обработка результатов'!Z19","v":"Высокая тревожность"}]
[{"$f":"'Обработка результатов'!A9","v":"Низкая физиологическая сопротивляемость стрессу"},null,null,null,null,{"$f":"'Обработка результатов'!Y20","v":100},{"$f":"'Обработка результатов'!Z20","v":"Высокая тревожность"}]
[{"$f":"'Обработка результатов'!A10","v":"Проблемы и страхи в отношениях с учителями"},null,null,null,null,{"$f":"'Обработка результатов'!Y21","v":100},{"$f":"'Обработка результатов'!Z21","v":"Высокая тревожность"}]
[]
[]
[]
[]
[]
[]
[]
[]
[]
[]
[]
[]
[]
[]
[]
[]
[]
[]
[]
[]
[]
[]
[]
[]
[]
[]
[]
["http://eschool.by/courses/psy/"]